fUSD/lending_fUSD_20251215
["ID","MTS","AMOUNT","RATE_DAILY","PERIOD"]
[398542771,1765817273401,359.89,0.00013969,2]
[398542772,1765817273622,359.89,0.0001438,2]
[398542773,1765817273838,359.89,0.00014791,2]
[398542774,1765817277188,359.89,0.00015202,2]
[398542775,1765817277220,359.89,0.00015612,2]
[398542776,1765817277267,348.54941143,0.00015248,2]
[398542792,1765817390032,150.0,0.000225,120]
[398542793,1765817400781,150.0,0.00022,30]
[398542795,1765817413881,203.0,0.00021331,120]
[398542796,1765817414008,203.0,0.00022398,120]
[398542819,1765817431981,-300.0,0.00015871,2]
[398542820,1765817431991,-1200.0,0.00015871,2]
[398542821,1765817432001,-10377.24241597,0.00015872,2]
[398542822,1765817432011,-337.92657984,0.00015886,2]
[398542823,1765817432020,-416.78991063,0.000159,2]
[398542824,1765817432030,-416.78991063,0.000159,2]
[398542825,1765817432040,-343.74993393,0.00015959,2]
[398542826,1765817432054,-578.20924308,0.00015959,2]
[398542827,1765817432063,-200.0,0.00015959,2]
[398542828,1765817432073,-207.4,0.00015959,2]
[398542829,1765817432083,-215.0738,0.00015959,2]
[398542830,1765817432093,-223.0315306,0.00015959,2]
[398542831,1765817432103,-231.28369723,0.00015959,2]
[398542832,1765817432113,-239.84119403,0.00015959,2]
[398542833,1765817432122,-248.71531821,0.00015959,2]
[398542834,1765817432132,-257.91778498,0.00015959,2]
[398542835,1765817432141,-201.6409744,0.00015961,2]
[398542836,1765817432151,-151.0,0.00015969,2]
[398542837,1765817432161,-222.81518021,0.00015971,2]
[398542838,1765817432171,-319.06566984,0.00015971,2]
[398542839,1765817432183,-180.93433016,0.00015971,2]
[398542840,1765817432193,-500.0,0.00015971,2]
[398542841,1765817432202,-500.0,0.00015971,2]
[398542842,1765817432211,-500.0,0.00015971,2]
[398542843,1765817432223,-500.0,0.00015971,2]
[398542844,1765817432232,-518.81572847,0.00015971,2]
[398542845,1765817432242,-500.0,0.00015971,2]
[398542847,1765817432251,-500.0,0.00015971,2]
[398542849,1765817432261,-500.0,0.00015971,2]
[398542851,1765817432271,-500.0,0.00015971,2]
[398542853,1765817432279,-500.0,0.00015971,2]
[398542855,1765817432288,-500.0,0.00015971,2]
[398542857,1765817432299,-500.0,0.00015971,2]
[398542859,1765817432308,-500.0,0.00015971,2]
[398542861,1765817432317,-500.0,0.00015971,2]
[398542863,1765817432326,-182.10851157,0.00015971,2]
[398542865,1765817432335,-500.0,0.00015971,2]
[398542867,1765817432345,-500.0,0.00015971,2]
[398542869,1765817432354,-559.15541252,0.00015971,2]
[398542871,1765817432363,-369.41564984,0.00015971,2]
[398542873,1765817432372,-500.0,0.00015971,2]
[398542875,1765817432381,-326.08711315,0.00015971,2]
[398542877,1765817432391,-300.0,0.00015971,2]
[398542879,1765817432400,-1200.0,0.00015971,2]
[398542881,1765817432409,-266.0,0.00015971,2]
[398542883,1765817432424,-39506.94251331,0.00015972,2]
[398542885,1765817432438,-5342.00000007,0.00015972,2]
[398542886,1765817432450,-2238.41975202,0.00015972,2]
[398542889,1765817432468,-4625.7895929,0.00015972,2]
[398542891,1765817432479,-2535.48197541,0.00015972,2]
[398542894,1765817432495,-2867.08577167,0.00015972,2]
[398542925,1765817440724,-2553.98606414,0.00015972,2]
[398542926,1765817440735,-86499.99999999,0.00015972,2]
[398542927,1765817440747,-24037.43787119,0.00015972,2]
[398542928,1765817440758,-574.77841418,0.00015972,2]
[398542929,1765817440769,-539.93551002,0.00015972,2]
[398542930,1765817440785,-17310.0,0.00015972,2]
[398542931,1765817441161,-379.40199987,0.00015972,2]
[398542932,1765817441967,-928.96875,0.00015972,2]
[398542933,1765817441979,-3757.80935408,0.00015972,2]
[398542934,1765817441992,-531691.52393869,0.00015972,2]
[398542935,1765817442001,-2839.9627,0.00015972,2]
[398542936,1765817442010,-281.4445,0.00015972,2]
[398542937,1765817442020,-61116.6022,0.00015972,2]
[398542938,1765817442029,-6682.1636,0.00015972,2]
[398542939,1765817442038,-235.7645,0.00015972,2]
[398542940,1765817442047,-500.0,0.00015972,2]
[398542941,1765817442057,-1174.13730854,0.00015974,2]
[398542942,1765817442066,-10377.24241597,0.00015986,2]
[398542943,1765817442076,-150.0,0.00015991,2]
[398542944,1765817442086,-367.669334,0.00016,2]
[398542945,1765817442095,-150.0,0.00016016,2]
[398542946,1765817442105,-150.0,0.00016016,2]
[398542947,1765817442114,-150.0,0.00016016,2]
[398542948,1765817442124,-1195.63016692,0.00016031,2]
[398542949,1765817442135,-150.0,0.00016043,2]
[398542950,1765817442145,-150.0,0.00016049,2]
[398542951,1765817442154,-668.65185757,0.00016061,2]
[398542952,1765817442164,-267.46074303,0.00016061,2]
[398542953,1765817442173,-620.0,0.00016062,2]
[398542954,1765817442183,-200.0,0.00016062,2]
[398542955,1765817442193,-200.0,0.00016062,2]
[398542956,1765817442202,-500.0,0.00016062,2]
[398542957,1765817442211,-151.0,0.00016062,2]
[398542958,1765817442220,-1592.06704289,0.00016062,2]
[398542959,1765817442229,-500.0,0.00016062,2]
[398542960,1765817442238,-500.0,0.00016062,2]
[398542961,1765817442247,-160.0,0.00016062,2]
[398542962,1765817442256,-500.0,0.00016062,2]
[398542963,1765817442265,-500.0,0.00016062,2]
[398542964,1765817442274,-500.0,0.00016062,2]
[398542965,1765817442283,-500.0,0.00016062,2]
[398542966,1765817442292,-1000.0,0.00016062,2]
[398542967,1765817442303,-500.0,0.00016062,2]
[398542968,1765817442312,-500.0,0.00016062,2]
[398542969,1765817442320,-1000.0,0.00016062,2]
[398542970,1765817442329,-500.0,0.00016062,2]
[398542971,1765817442339,-500.0,0.00016062,2]
[398542972,1765817442348,-500.0,0.00016062,2]
[398542973,1765817442357,-1000.0,0.00016062,2]
[398542974,1765817442366,-500.0,0.00016062,2]
[398542975,1765817442375,-500.0,0.00016062,2]
[398542976,1765817442384,-500.0,0.00016062,2]
[398542977,1765817442393,-1000.0,0.00016062,2]
[398542978,1765817442402,-500.0,0.00016062,2]
[398542979,1765817442411,-500.0,0.00016062,2]
[398542980,1765817442420,-151.0,0.00016062,2]
[398542981,1765817442429,-544.47749946,0.00016062,2]
[398542982,1765817442438,-500.0,0.00016062,2]
[398542983,1765817442447,-500.0,0.00016062,2]
[398542984,1765817442456,-151.0,0.00016062,2]
[398542985,1765817442466,-500.0,0.00016062,2]
[398542986,1765817442474,-500.0,0.00016062,2]
[398542987,1765817442485,-151.0,0.00016062,2]
[398542988,1765817442494,-500.0,0.00016062,2]
[398542989,1765817442503,-500.0,0.00016062,2]
[398542990,1765817442512,-151.0,0.00016062,2]
[398542991,1765817442521,-500.0,0.00016062,2]
[398542992,1765817442531,-500.0,0.00016062,2]
[398542993,1765817442540,-151.0,0.00016062,2]
[398542994,1765817442550,-545.1605607,0.00016062,2]
[398542995,1765817442559,-1212.4769749,0.00016062,2]
[398542996,1765817442569,-500.0,0.00016062,2]
[398542997,1765817442578,-151.0,0.00016062,2]
[398542998,1765817442587,-500.0,0.00016062,2]
[398542999,1765817442596,-151.0,0.00016062,2]
[398543000,1765817442606,-500.0,0.00016062,2]
[398543001,1765817442615,-151.0,0.00016062,2]
[398543002,1765817442624,-500.0,0.00016062,2]
[398543003,1765817442633,-151.0,0.00016062,2]
[398543004,1765817442643,-500.0,0.00016062,2]
[398543005,1765817442652,-151.0,0.00016062,2]
[398543006,1765817442661,-151.0,0.00016062,2]
[398543007,1765817442671,-151.0,0.00016062,2]
[398543008,1765817442680,-201.56881359,0.00016062,2]
[398543009,1765817442689,-151.0,0.00016062,2]
[398543010,1765817442698,-500.0,0.00016062,2]
[398543011,1765817442708,-695.39793187,0.00016062,2]
[398543012,1765817442718,-250.0,0.00016062,2]
[398543013,1765817442727,-500.0,0.00016062,2]
[398543014,1765817442735,-1748.0,0.00016062,2]
[398543015,1765817442744,-684.19562539,0.00016062,2]
[398543016,1765817442753,-500.0,0.00016062,2]
[398543018,1765817442763,-500.0,0.00016062,2]
[398543019,1765817442772,-151.0,0.00016062,2]
[398543021,1765817442784,-500.0,0.00016062,2]
[398543023,1765817442795,-151.0,0.00016062,2]
[398543024,1765817442805,-536.94265308,0.00016062,2]
[398543025,1765817442814,-1000.0,0.00016062,2]
[398543027,1765817442823,-151.0,0.00016062,2]
[398543028,1765817442833,-300.0,0.00016062,2]
[398543029,1765817442843,-1000.0,0.00016062,2]
[398543030,1765817442853,-151.0,0.00016062,2]
[398543031,1765817442863,-1000.0,0.00016062,2]
[398543032,1765817442872,-151.0,0.00016062,2]
[398543033,1765817442881,-908.76956437,0.00016062,2]
[398543034,1765817442890,-1000.0,0.00016062,2]
[398543035,1765817442899,-151.0,0.00016062,2]
[398543037,1765817442908,-1000.0,0.00016062,2]
[398543038,1765817442917,-151.0,0.00016062,2]
[398543039,1765817442926,-1000.0,0.00016062,2]
[398543040,1765817442936,-1000.0,0.00016062,2]
[398543041,1765817442946,-151.0,0.00016062,2]
[398543042,1765817442955,-553.64373807,0.00016062,2]
[398543043,1765817442964,-1000.0,0.00016062,2]
[398543044,1765817442973,-151.0,0.00016062,2]
[398543045,1765817442982,-1000.0,0.00016062,2]
[398543046,1765817442991,-1000.0,0.00016062,2]
[398543047,1765817443000,-151.0,0.00016062,2]
[398543048,1765817443010,-1000.0,0.00016062,2]
[398543049,1765817443019,-151.0,0.00016062,2]
[398543050,1765817443028,-1000.0,0.00016062,2]
[398543051,1765817443038,-231.76701204,0.00016062,2]
[398543052,1765817443047,-250.0,0.00016062,2]
[398543053,1765817443057,-250.0,0.00016062,2]
[398543054,1765817443066,-1000.0,0.00016062,2]
[398543055,1765817443075,-1000.0,0.00016062,2]
[398543056,1765817443084,-1000.0,0.00016062,2]
[398543057,1765817443094,-1057.9811568,0.00016062,2]
[398543058,1765817443104,-500.0,0.00016062,2]
[398543059,1765817443114,-500.0,0.00016062,2]
[398543060,1765817443123,-250.0,0.00016062,2]
[398543061,1765817443132,-500.0,0.00016062,2]
[398543062,1765817443141,-250.0,0.00016062,2]
[398543063,1765817443150,-500.0,0.00016062,2]
[398543064,1765817443159,-500.0,0.00016062,2]
[398543065,1765817443168,-500.0,0.00016062,2]
[398543066,1765817443177,-500.0,0.00016062,2]
[398543067,1765817443186,-500.0,0.00016062,2]
[398543068,1765817443196,-1111.9,0.00016062,2]
[398543069,1765817443206,-1000.0,0.0001607,2]
[398543070,1765817443217,-160.97425744,0.00016083,2]
[398543071,1765817443226,-150.0,0.00016083,2]
[398543072,1765817443237,-150.0,0.00016083,2]
[398543073,1765817443246,-150.0,0.00016083,2]
[398543074,1765817443255,-150.0,0.00016083,2]
[398543075,1765817443266,-150.0,0.00016083,2]
[398543076,1765817443276,-500.0,0.00016083,2]
[398543077,1765817443286,-500.0,0.00016083,2]
[398543078,1765817443295,-500.0,0.00016083,2]
[398543079,1765817443306,-150.0,0.00016083,2]
[398543080,1765817443315,-200.0,0.00016083,2]
[398543081,1765817443324,-500.0,0.00016083,2]
[398543082,1765817443334,-150.0,0.00016083,2]
[398543083,1765817443343,-1895.0,0.00016083,2]
[398543084,1765817443354,-500.0,0.00016083,2]
[398543085,1765817443364,-500.0,0.00016083,2]
[398543086,1765817443375,-256.96660006,0.00016083,2]
[398543087,1765817443384,-500.0,0.00016083,2]
[398543088,1765817443394,-150.0,0.00016083,2]
[398543089,1765817443405,-150.0,0.00016083,2]
[398543092,1765817443908,-500.0,0.00016083,2]
[398543093,1765817443918,-150.0,0.00016083,2]
[398543094,1765817443927,-500.0,0.00016083,2]
[398543095,1765817443937,-150.0,0.00016083,2]
[398543096,1765817443947,-500.0,0.00016083,2]
[398543097,1765817443956,-150.14439205,0.00016083,2]
[398543098,1765817443965,-500.0,0.00016083,2]
[398543099,1765817443975,-150.0,0.00016083,2]
[398543100,1765817443985,-150.0,0.00016083,2]
[398543101,1765817443995,-500.0,0.00016083,2]
[398543102,1765817444004,-505.0,0.00016083,2]
[398543103,1765817444014,-150.0,0.00016083,2]
[398543104,1765817444024,-500.0,0.00016083,2]
[398543105,1765817444033,-337.92657984,0.0001609,2]
[398543106,1765817444043,-10377.24241597,0.000161,2]
[398543107,1765817444055,-150.0,0.00016108,2]
[398543108,1765817444065,-1366.0,0.00016109,2]
[398543109,1765817444074,-422.0,0.00016109,2]
[398543110,1765817444084,-806.65,0.00016121,3]
[398543111,1765817444093,-1195.63016688,0.00016128,2]
[398543112,1765817444103,-150.0,0.00016137,2]
[398543113,1765817444113,-150.0,0.00016137,2]
[398543114,1765817444123,-150.0,0.00016137,2]
[398543115,1765817444132,-150.0,0.00016137,2]
[398543116,1765817444141,-150.0,0.00016137,2]
[398543117,1765817444151,-150.0,0.00016166,2]
[398543118,1765817444161,-167.01915454,0.00016173,2]
[398543119,1765817444171,-500.0,0.00016173,2]
[398543120,1765817444181,-634.06328694,0.00016173,2]
[398543121,1765817444191,-500.0,0.00016173,2]
[398543122,1765817444201,-500.0,0.00016173,2]
[398543123,1765817444211,-500.0,0.00016173,2]
[398543124,1765817444220,-500.0,0.00016173,2]
[398543125,1765817444229,-223.90146234,0.00016173,2]
[398543126,1765817444238,-500.0,0.00016173,2]
[398543127,1765817444248,-500.0,0.00016173,2]
[398543128,1765817444257,-500.0,0.00016173,2]
[398543129,1765817444266,-500.0,0.00016173,2]
[398543130,1765817444275,-500.0,0.00016173,2]
[398543131,1765817444285,-500.0,0.00016173,2]
[398543132,1765817444294,-535.77849194,0.00016173,2]
[398543133,1765817444304,-500.0,0.00016173,2]
[398543134,1765817444314,-500.0,0.00016173,2]
[398543135,1765817444323,-500.0,0.00016173,2]
[398543136,1765817444333,-500.0,0.00016173,2]
[398543137,1765817444342,-500.0,0.00016173,2]
[398543138,1765817444351,-1000.0,0.00016192,2]
[398543139,1765817444360,-300.0,0.000162,2]
[398543140,1765817444370,-300.0,0.000162,2]
[398543141,1765817444379,-150.0,0.000162,2]
[398543142,1765817444388,-1000.0,0.000162,2]
[398543143,1765817444397,-2500.0,0.000162,2]
[398543144,1765817444407,-10377.24241597,0.00016215,2]
[398543145,1765817444416,-150.0,0.0001622,2]
[398543146,1765817444426,-150.0,0.0001622,2]
[398543147,1765817444435,-500.0,0.0001622,2]
[398543148,1765817444445,-500.0,0.0001622,2]
[398543149,1765817444455,-500.0,0.0001622,2]
[398543150,1765817444464,-150.0,0.0001622,2]
[398543151,1765817444474,-500.0,0.0001622,2]
[398543153,1765817444483,-157.61215021,0.0001622,2]
[398543154,1765817444492,-1895.0,0.0001622,2]
[398543155,1765817444501,-500.0,0.0001622,2]
[398543156,1765817444511,-500.0,0.0001622,2]
[398543157,1765817444520,-500.0,0.0001622,2]
[398543158,1765817444530,-150.0,0.0001622,2]
[398543159,1765817444539,-150.0,0.0001622,2]
[398543160,1765817444548,-500.0,0.0001622,2]
[398543161,1765817444557,-500.0,0.0001622,2]
[398543162,1765817444567,-150.0,0.0001622,2]
[398543163,1765817444576,-500.0,0.0001622,2]
[398543164,1765817444586,-500.0,0.0001622,2]
[398543165,1765817444595,-150.0,0.0001622,2]
[398543166,1765817444605,-500.0,0.0001622,2]
[398543167,1765817444614,-505.0,0.0001622,2]
[398543168,1765817444624,-500.0,0.0001622,2]
[398543169,1765817444633,-1195.63016688,0.00016224,2]
[398543170,1765817444643,-150.0,0.00016225,2]
[398543171,1765817444653,-150.0,0.00016231,2]
[398543172,1765817444662,-500.0,0.00016245,2]
[398543173,1765817444671,-150.0,0.00016258,2]
[398543174,1765817444680,-150.0,0.00016258,2]
[398543175,1765817444690,-150.0,0.00016258,2]
[398543176,1765817444699,-150.0,0.00016283,2]
[398543177,1765817444709,-337.92657984,0.00016293,2]
[398543178,1765817444719,-19255.97986214,0.000163,2]
[398543179,1765817444728,-1106.44,0.000163,2]
[398543180,1765817444737,-553.28,0.000163,2]
[398543181,1765817444747,-343.46,0.000163,2]
[398543182,1765817444755,-150.0,0.000163,2]
[398543183,1765817444764,-1195.63016688,0.00016321,2]
[398543184,1765817444773,-150.0,0.00016326,2]
[398543185,1765817444783,-10377.24241597,0.00016329,2]
[398543186,1765817444795,-1111.9,0.00016336,2]
[398543187,1765817444805,-1701.0,0.00016338,2]
[398543188,1765817444814,-29866.7464,0.0001634,2]
[398543189,1765817444823,-150.0,0.00016342,2]
[398543190,1765817444834,-150.0,0.00016357,2]
[398543191,1765817444843,-150.0,0.00016357,2]
[398543192,1765817444853,-500.0,0.00016357,2]
[398543193,1765817444862,-600.0,0.00016357,2]
[398543194,1765817444873,-354.41568326,0.00016357,2]
[398543195,1765817444883,-150.0,0.00016357,2]
[398543196,1765817444892,-500.0,0.00016357,2]
[398543197,1765817444900,-1895.0,0.00016357,2]
[398543198,1765817444910,-500.0,0.00016357,2]
[398543199,1765817444920,-500.0,0.00016357,2]
[398543200,1765817444929,-500.0,0.00016357,2]
[398543201,1765817444938,-150.0,0.00016357,2]
[398543202,1765817444948,-150.0,0.00016357,2]
[398543203,1765817444957,-500.0,0.00016357,2]
[398543204,1765817444966,-500.0,0.00016357,2]
[398543205,1765817444975,-200.0,0.00016357,2]
[398543206,1765817444984,-500.0,0.00016357,2]
[398543207,1765817444994,-500.0,0.00016357,2]
[398543208,1765817445004,-150.0,0.00016357,2]
[398543209,1765817445013,-157.43679009,0.00016357,2]
[398543210,1765817445023,-505.0,0.00016357,2]
[398543211,1765817445032,-500.0,0.00016357,2]
[398543212,1765817445042,-151.0,0.00016368,2]
[398543213,1765817445052,-300.0,0.0001637,2]
[398543214,1765817445061,-19939.3847287,0.00016371,2]
[398543215,1765817445070,-15401.3330091,0.00016371,2]
[398543216,1765817445079,-150.0,0.0001638,2]
[398543217,1765817445088,-150.0,0.0001638,2]
[398543218,1765817445097,-150.0,0.0001638,2]
[398543219,1765817445106,-151.0,0.00016389,2]
[398543220,1765817445116,-19924.010204,0.00016392,2]
[398543221,1765817445126,-55473.0114578,0.00016392,2]
[398543222,1765817445135,-56708.2357726,0.00016392,2]
[398543223,1765817445144,-57414.9680081,0.00016392,2]
[398543224,1765817445153,-24810.5468498,0.00016392,2]
[398543225,1765817445163,-549709.1856295,0.00016392,2]
[398543226,1765817445172,-337.780426,0.00016392,2]
[398543227,1765817445181,-337.780426,0.00016392,2]
[398543228,1765817445191,-337.780426,0.00016392,2]
[398543229,1765817445200,-337.780426,0.00016392,2]
[398543230,1765817445209,-2891.57366947,0.00016393,2]
[398543231,1765817445218,-200.0,0.00016394,2]
[398543232,1765817445228,-200.0,0.00016394,2]
[398543233,1765817445238,-200.0,0.00016394,2]
[398543234,1765817445247,-227.0,0.000164,2]
[398543235,1765817445257,-319.0,0.000164,2]
[398543236,1765817445267,-182.0,0.000164,2]
[398543237,1765817445276,-183.88005914,0.000164,2]
[398543238,1765817445286,-382.21,0.000164,2]
[398543239,1765817445295,-181.01,0.000164,2]
[398543240,1765817445306,-300.0,0.000164,2]
[398543241,1765817445316,-150.0,0.00016401,2]
[398543242,1765817445325,-1195.63016688,0.00016417,2]
[398543243,1765817445335,-150.0,0.0001642,2]
[398543244,1765817445345,-150.0,0.0001642,2]
[398543245,1765817445354,-500.0,0.00016438,2]
[398543246,1765817445363,-500.0,0.00016438,2]
[398543247,1765817445374,-500.0,0.00016438,2]
[398543248,1765817445383,-500.0,0.00016438,2]
[398543249,1765817445393,-500.0,0.00016438,2]
[398543250,1765817445403,-500.0,0.00016438,2]
[398543251,1765817445412,-500.0,0.00016438,2]
[398543252,1765817445422,-500.0,0.00016438,2]
[398543253,1765817445432,-500.0,0.00016438,2]
[398543254,1765817445442,-500.0,0.00016438,2]
[398543255,1765817445451,-500.0,0.00016438,2]
[398543256,1765817445461,-500.0,0.00016438,2]
[398543257,1765817445470,-500.0,0.00016438,2]
[398543258,1765817445479,-500.0,0.00016438,2]
[398543259,1765817445488,-500.0,0.00016438,2]
[398543260,1765817445498,-500.0,0.00016438,2]
[398543261,1765817445507,-500.0,0.00016438,2]
[398543262,1765817445516,-500.0,0.00016438,2]
[398543263,1765817445525,-500.0,0.00016438,2]
[398543264,1765817445535,-500.0,0.00016438,2]
[398543265,1765817445544,-500.0,0.00016438,2]
[398543266,1765817445556,-500.0,0.00016438,2]
[398543267,1765817445565,-500.0,0.00016438,2]
[398543268,1765817445575,-500.0,0.00016438,2]
[398543269,1765817445585,-500.0,0.00016438,2]
[398543270,1765817445595,-500.0,0.00016438,2]
[398543271,1765817445606,-500.0,0.00016438,2]
[398543272,1765817445616,-500.0,0.00016438,2]
[398543273,1765817445627,-500.0,0.00016438,2]
[398543274,1765817445638,-500.0,0.00016438,2]
[398543275,1765817445649,-500.0,0.00016438,2]
[398543276,1765817445659,-500.0,0.00016438,2]
[398543277,1765817445669,-500.0,0.00016438,2]
[398543278,1765817445679,-500.0,0.00016438,2]
[398543279,1765817445689,-500.0,0.00016438,2]
[398543280,1765817445699,-162.99521388,0.00016438,2]
[398543281,1765817445708,-500.0,0.00016438,2]
[398543282,1765817445719,-500.0,0.00016438,2]
[398543283,1765817445728,-500.0,0.00016438,2]
[398543284,1765817445738,-500.0,0.00016438,2]
[398543285,1765817445748,-500.0,0.00016438,2]
[398543286,1765817445758,-500.0,0.00016438,2]
[398543287,1765817445768,-500.0,0.00016438,2]
[398543288,1765817445778,-500.0,0.00016438,2]
[398543289,1765817445793,-500.0,0.00016438,2]
[398543290,1765817445807,-500.0,0.00016438,2]
[398543291,1765817445818,-500.0,0.00016438,2]
[398543292,1765817445828,-500.0,0.00016438,2]
[398543293,1765817445839,-500.0,0.00016438,2]
[398543294,1765817445850,-500.0,0.00016438,2]
[398543295,1765817445859,-500.0,0.00016438,2]
[398543296,1765817445868,-500.0,0.00016438,2]
[398543297,1765817445877,-500.0,0.00016438,2]
[398543298,1765817445888,-300.0,0.00016438,2]
[398543299,1765817445898,-500.0,0.00016438,2]
[398543300,1765817445907,-500.0,0.00016438,2]
[398543301,1765817445916,-500.0,0.00016438,2]
[398543302,1765817445926,-500.0,0.00016438,2]
[398543303,1765817445935,-500.0,0.00016438,2]
[398543304,1765817445944,-500.0,0.00016438,2]
[398543305,1765817445953,-500.0,0.00016438,2]
[398543306,1765817445962,-500.0,0.00016438,2]
[398543307,1765817445972,-500.0,0.00016438,2]
[398543308,1765817445982,-500.0,0.00016438,2]
[398543309,1765817445992,-500.0,0.00016438,2]
[398543310,1765817446001,-500.0,0.00016438,2]
[398543311,1765817446010,-500.0,0.00016438,2]
[398543312,1765817446020,-500.0,0.00016438,2]
[398543313,1765817446029,-151.0,0.00016438,2]
[398543314,1765817446039,-151.0,0.00016438,2]
[398543315,1765817446048,-151.0,0.00016438,2]
[398543316,1765817446058,-151.0,0.00016438,2]
[398543317,1765817446067,-151.0,0.00016438,2]
[398543318,1765817446077,-151.0,0.00016438,2]
[398543319,1765817446086,-151.0,0.00016438,2]
[398543320,1765817446096,-4188.756506,0.00016438,2]
[398543321,1765817446105,-151.0,0.00016438,2]
[398543322,1765817446115,-4188.756506,0.00016438,2]
[398543323,1765817446124,-289.990265,0.00016438,2]
[398543324,1765817446133,-4188.756506,0.00016438,2]
[398543325,1765817446142,-4188.756506,0.00016438,2]
[398543326,1765817446151,-151.0,0.00016438,2]
[398543327,1765817446160,-151.0,0.00016438,2]
[398543328,1765817446169,-151.0,0.00016438,2]
[398543329,1765817446178,-151.0,0.00016438,2]
[398543330,1765817446188,-151.0,0.00016438,2]
[398543331,1765817446197,-151.0,0.00016438,2]
[398543332,1765817446206,-151.0,0.00016438,2]
[398543333,1765817446215,-151.0,0.00016438,2]
[398543334,1765817446225,-151.0,0.00016438,2]
[398543335,1765817446234,-365.25428,0.00016438,2]
[398543336,1765817446244,-151.0,0.00016438,2]
[398543338,1765817446253,-365.25428,0.00016438,2]
[398543339,1765817446263,-151.0,0.00016438,2]
[398543340,1765817446272,-151.0,0.00016438,2]
[398543341,1765817446282,-365.25428,0.00016438,2]
[398543342,1765817446292,-151.0,0.00016438,2]
[398543343,1765817446302,-365.25428,0.00016438,2]
[398543344,1765817446311,-839.569379,0.00016438,2]
[398543345,1765817446320,-839.569379,0.00016438,2]
[398543347,1765817446330,-839.569379,0.00016438,2]
[398543349,1765817446339,-839.569379,0.00016438,2]
[398543350,1765817446348,-458.128481,0.00016438,2]
[398543352,1765817446357,-150.5,0.00016438,2]
[398543355,1765817446366,-150.0,0.00016438,2]
[398543356,1765817446376,-1025.50231628,0.0001644,2]
[398543357,1765817446384,-1025.50231628,0.0001644,2]
[398543358,1765817446393,-1025.50231628,0.0001644,2]
[398543359,1765817446402,-1025.50231628,0.0001644,2]
[398543360,1765817446411,-1025.50231628,0.0001644,2]
[398543362,1765817446420,-1025.50231628,0.0001644,2]
[398543364,1765817446430,-1025.50231628,0.0001644,2]
[398543365,1765817446439,-1025.50231628,0.0001644,2]
[398543366,1765817446448,-1025.50231628,0.0001644,2]
[398543367,1765817446457,-1025.50231628,0.0001644,2]
[398543369,1765817446466,-1025.50231628,0.0001644,2]
[398543370,1765817446475,-1025.50231628,0.0001644,2]
[398543371,1765817446484,-1025.50231628,0.0001644,2]
[398543372,1765817446493,-1025.50231628,0.0001644,2]
[398543373,1765817446502,-1025.50231628,0.0001644,2]
[398543374,1765817446512,-1025.50231628,0.0001644,2]
[398543375,1765817446521,-1025.50231628,0.0001644,2]
[398543376,1765817446531,-1025.50231628,0.0001644,2]
[398543377,1765817446541,-1025.50231628,0.0001644,2]
[398543378,1765817446550,-1025.5,0.0001644,2]
[398543379,1765817446562,-164.24,0.0001644,2]
[398543380,1765817446571,-10377.24241597,0.00016443,2]